[Event "Late-Titled-Tuesday-Blitz-October-03-2023"]
[Site "Chess.com"]
[Date "2023.10.03"]
[Round "6"]
[White "littlepinkyboy"]
[Black "Brown_Mamba24"]
[Result "0-1"]
[WhiteElo "2411"]
[BlackElo "2651"]
[TimeControl "180+1"]
[EndTime "15:03:56 PDT"]
[Termination "Brown_Mamba24 won by resignation"]

1. e4 {[%clk 0:02:56.5]} 1... c5 {[%clk 0:03:00]} 2. c3 {[%clk 0:02:55.6]} 2...
d5 {[%clk 0:02:59.2]} 3. exd5 {[%clk 0:02:52.3]} 3... Qxd5 {[%clk 0:03:00.1]} 4.
d4 {[%clk 0:02:51.3]} 4... cxd4 {[%clk 0:02:58.9]} 5. Qxd4 {[%clk 0:02:48.8]}
5... Qxd4 {[%clk 0:02:49.7]} 6. cxd4 {[%clk 0:02:49.7]} 6... Nc6 {[%clk
0:02:49.9]} 7. Bb5 {[%clk 0:02:38.3]} 7... Bd7 {[%clk 0:02:46.9]} 8. Ne2 {[%clk
0:02:29.5]} 8... Nf6 {[%clk 0:02:42.5]} 9. Nbc3 {[%clk 0:02:17]} 9... e6 {[%clk
0:02:40.2]} 10. Bg5 {[%clk 0:01:45.3]} 10... Bb4 {[%clk 0:02:31.2]} 11. O-O
{[%clk 0:01:34.8]} 11... a6 {[%clk 0:02:27.7]} 12. Bd3 {[%clk 0:00:40.4]} 12...
Rc8 {[%clk 0:02:09.8]} 13. Rac1 {[%clk 0:00:38.2]} 13... O-O {[%clk 0:02:03.6]}
14. Bxf6 {[%clk 0:00:29.1]} 14... gxf6 {[%clk 0:02:04.5]} 15. Ne4 {[%clk
0:00:29.8]} 15... Be7 {[%clk 0:01:53]} 16. Bb1 {[%clk 0:00:23]} 16... Rfd8
{[%clk 0:01:49.9]} 17. Nc5 {[%clk 0:00:22.5]} 17... Nxd4 {[%clk 0:01:44.9]} 18.
Nxd4 {[%clk 0:00:22]} 18... Rxc5 {[%clk 0:01:44.6]} 19. Rxc5 {[%clk 0:00:21]}
19... Bxc5 {[%clk 0:01:45.5]} 20. Nb3 {[%clk 0:00:21.8]} 20... Bb6 {[%clk
0:01:43.2]} 21. Rd1 {[%clk 0:00:22]} 21... Bc6 {[%clk 0:01:39.9]} 22. Rxd8+
{[%clk 0:00:22.9]} 22... Bxd8 {[%clk 0:01:40.5]} 23. Nd4 {[%clk 0:00:20.5]}
23... Bd5 {[%clk 0:01:40.4]} 24. b3 {[%clk 0:00:19.7]} 24... f5 {[%clk
0:01:40.2]} 25. Ne2 {[%clk 0:00:16.9]} 25... Bf6 {[%clk 0:01:32.2]} 26. f3
{[%clk 0:00:16.8]} 26... Kf8 {[%clk 0:01:30.9]} 27. Kf2 {[%clk 0:00:17.4]} 27...
Ke7 {[%clk 0:01:31.4]} 28. Ke3 {[%clk 0:00:17.6]} 28... Kd6 {[%clk 0:01:31.7]}
29. Bd3 {[%clk 0:00:17.9]} 29... Kc5 {[%clk 0:01:31.2]} 30. Nf4 {[%clk 0:00:14]}
30... Bg5 {[%clk 0:01:29.7]} 31. h4 {[%clk 0:00:13.6]} 31... Bh6 {[%clk
0:01:25.9]} 32. g4 {[%clk 0:00:13.5]} 32... e5 {[%clk 0:01:25.2]} 33. g5 {[%clk
0:00:14]} 33... exf4+ {[%clk 0:01:25.5]} 34. Kxf4 {[%clk 0:00:14.9]} 34... Bg7
{[%clk 0:01:22.7]} 35. Bxf5 {[%clk 0:00:15.3]} 35... h6 {[%clk 0:01:22.1]} 36.
Bc8 {[%clk 0:00:11.3]} 36... Kb4 {[%clk 0:01:14.3]} 37. Kg4 {[%clk 0:00:09.3]}
37... Ka3 {[%clk 0:01:11.6]} 38. f4 {[%clk 0:00:09.9]} 38... Kxa2 {[%clk
0:00:51.4]} 39. f5 {[%clk 0:00:09.6]} 39... Kxb3 {[%clk 0:00:44.5]} 40. f6
{[%clk 0:00:08.9]} 40... Bf8 {[%clk 0:00:44.3]} 41. h5 {[%clk 0:00:08.2]} 41...
hxg5 {[%clk 0:00:39.6]} 42. Kxg5 {[%clk 0:00:09.1]} 42... a5 {[%clk 0:00:38.3]}
43. h6 {[%clk 0:00:09.4]} 43... Bxh6+ {[%clk 0:00:37.6]} 44. Kxh6 {[%clk
0:00:10.3]} 44... a4 {[%clk 0:00:37.1]} 45. Kg7 {[%clk 0:00:08.7]} 45... a3
{[%clk 0:00:37.5]} 46. Bxb7 {[%clk 0:00:09.3]} 46... Bxb7 {[%clk 0:00:36.5]} 0-1

[Event "Late-Titled-Tuesday-Blitz-October-03-2023"]
[Site "Chess.com"]
[Date "2023.10.03"]
[Round "6"]
[White "CraiggoryC"]
[Black "maurovargas01"]
[Result "1-0"]
[WhiteElo "2284"]
[BlackElo "1914"]
[TimeControl "180+1"]
[EndTime "15:03:57 PDT"]
[Termination "CraiggoryC won on time"]

1. e4 {[%clk 0:02:56.6]} 1... e5 {[%clk 0:02:58.9]} 2. Nf3 {[%clk 0:02:56]} 2...
Nc6 {[%clk 0:02:59]} 3. Bc4 {[%clk 0:02:56]} 3... Bc5 {[%clk 0:02:57.9]} 4. d3
{[%clk 0:02:55.8]} 4... Nf6 {[%clk 0:02:56.6]} 5. O-O {[%clk 0:02:55.6]} 5... d6
{[%clk 0:02:45.7]} 6. c3 {[%clk 0:02:55]} 6... a6 {[%clk 0:02:42.7]} 7. Bb3
{[%clk 0:02:50.9]} 7... Ba7 {[%clk 0:02:42.3]} 8. Nbd2 {[%clk 0:02:47.7]} 8...
Ng4 {[%clk 0:02:26.9]} 9. h3 {[%clk 0:02:38.7]} 9... h5 {[%clk 0:02:26.4]} 10.
Nc4 {[%clk 0:02:28.3]} 10... Bd7 {[%clk 0:02:23.2]} 11. Ne3 {[%clk 0:01:45.5]}
11... Qe7 {[%clk 0:02:20.9]} 12. Nd5 {[%clk 0:01:19.3]} 12... Qd8 {[%clk
0:02:05.5]} 13. Bg5 {[%clk 0:00:50]} 13... Qc8 {[%clk 0:01:47.7]} 14. hxg4
{[%clk 0:00:43.5]} 14... hxg4 {[%clk 0:01:41.1]} 15. Nd2 {[%clk 0:00:32.3]}
15... g3 {[%clk 0:01:37.1]} 16. Be3 {[%clk 0:00:31]} 16... Qd8 {[%clk
0:01:26.5]} 17. fxg3 {[%clk 0:00:24.2]} 17... Qc8 {[%clk 0:01:04.9]} 18. Qf3
{[%clk 0:00:21.5]} 18... f6 {[%clk 0:00:57.6]} 19. Bxa7 {[%clk 0:00:20.5]} 19...
Nxa7 {[%clk 0:00:50.6]} 20. Nxf6+ {[%clk 0:00:20.6]} 20... gxf6 {[%clk
0:00:49.7]} 21. Qxf6 {[%clk 0:00:21.5]} 21... Be6 {[%clk 0:00:47.2]} 22. Qxh8+
{[%clk 0:00:21]} 22... Ke7 {[%clk 0:00:43.6]} 23. Qxc8 {[%clk 0:00:20.2]} 23...
Rxc8 {[%clk 0:00:41.2]} 24. Bxe6 {[%clk 0:00:20]} 24... Kxe6 {[%clk 0:00:41.1]}
25. Rf5 {[%clk 0:00:20.2]} 25... Rg8 {[%clk 0:00:40.1]} 26. Kh2 {[%clk
0:00:18.6]} 26... Nc6 {[%clk 0:00:37.4]} 27. Raf1 {[%clk 0:00:18.1]} 27... Rh8+
{[%clk 0:00:31]} 28. Kg1 {[%clk 0:00:18]} 28... Rg8 {[%clk 0:00:30.8]} 29. R1f3
{[%clk 0:00:18.2]} 29... Rg6 {[%clk 0:00:23.3]} 30. Nc4 {[%clk 0:00:17.1]} 30...
b5 {[%clk 0:00:20.1]} 31. Ne3 {[%clk 0:00:17.1]} 31... Ne7 {[%clk 0:00:17.4]}
32. Rf7 {[%clk 0:00:16.8]} 32... c6 {[%clk 0:00:07]} 33. Rh7 {[%clk 0:00:15.1]}
33... d5 {[%clk 0:00:04.3]} 34. Rff7 {[%clk 0:00:14.9]} 1-0

[Event "Late-Titled-Tuesday-Blitz-October-03-2023"]
[Site "Chess.com"]
[Date "2023.10.03"]
[Round "6"]
[White "GMForgacs"]
[Black "LeninGuerra"]
[Result "1/2-1/2"]
[WhiteElo "2460"]
[BlackElo "2590"]
[TimeControl "180+1"]
[EndTime "15:04:04 PDT"]
[Termination "Game drawn - insufficient material"]

1. e4 {[%clk 0:03:00.9]} 1... c5 {[%clk 0:02:49.7]} 2. Nf3 {[%clk 0:03:01]} 2...
e6 {[%clk 0:02:47.3]} 3. d4 {[%clk 0:03:01.6]} 3... cxd4 {[%clk 0:02:41.7]} 4.
Nxd4 {[%clk 0:03:02.5]} 4... Nc6 {[%clk 0:02:40.1]} 5. Nc3 {[%clk 0:03:01.9]}
5... Qc7 {[%clk 0:02:38.7]} 6. Be3 {[%clk 0:03:01.8]} 6... a6 {[%clk 0:02:37.7]}
7. a3 {[%clk 0:03:02.5]} 7... Nf6 {[%clk 0:02:36.1]} 8. f4 {[%clk 0:03:03.1]}
8... b5 {[%clk 0:02:35.3]} 9. Nxc6 {[%clk 0:03:00.7]} 9... dxc6 {[%clk
0:02:34.2]} 10. Qf3 {[%clk 0:02:57.4]} 10... Bb7 {[%clk 0:02:33.2]} 11. g4
{[%clk 0:02:52.8]} 11... c5 {[%clk 0:02:31.4]} 12. g5 {[%clk 0:02:51.5]} 12...
b4 {[%clk 0:02:30.3]} 13. axb4 {[%clk 0:02:37.5]} 13... cxb4 {[%clk 0:02:29.2]}
14. Nb5 {[%clk 0:02:38]} 14... Qc6 {[%clk 0:01:13.7]} 15. gxf6 {[%clk
0:02:29.8]} 15... axb5 {[%clk 0:01:12.9]} 16. Rxa8+ {[%clk 0:02:28.1]} 16...
Bxa8 {[%clk 0:01:13.8]} 17. Qe2 {[%clk 0:02:21]} 17... Qxe4 {[%clk 0:00:59.5]}
18. Qxb5+ {[%clk 0:02:17.8]} 18... Bc6 {[%clk 0:01:00]} 19. Qb8+ {[%clk
0:02:17.3]} 19... Kd7 {[%clk 0:01:00.4]} 20. Qa7+ {[%clk 0:02:12.3]} 20... Bb7
{[%clk 0:00:46.1]} 21. Bb5+ {[%clk 0:02:07.7]} 21... Kc8 {[%clk 0:00:45]} 22.
Rf1 {[%clk 0:01:53.3]} 22... gxf6 {[%clk 0:00:38.8]} 23. Ba6 {[%clk 0:01:50.3]}
23... Bxa6 {[%clk 0:00:28.2]} 24. Qxa6+ {[%clk 0:01:48.3]} 24... Qb7 {[%clk
0:00:28.8]} 25. Qc4+ {[%clk 0:01:42.6]} 25... Qc7 {[%clk 0:00:28.1]} 26. Qe4
{[%clk 0:01:36.8]} 26... Bd6 {[%clk 0:00:22.7]} 27. Kf2 {[%clk 0:01:28.1]} 27...
Qb7 {[%clk 0:00:21.9]} 28. Qxb7+ {[%clk 0:01:22.1]} 28... Kxb7 {[%clk
0:00:21.5]} 29. Rd1 {[%clk 0:01:23]} 29... Kc6 {[%clk 0:00:20.6]} 30. Rd4 {[%clk
0:01:13.8]} 30... Rc8 {[%clk 0:00:20.4]} 31. Rc4+ {[%clk 0:01:11.8]} 31... Kd7
{[%clk 0:00:20.2]} 32. Rxc8 {[%clk 0:01:09]} 32... Kxc8 {[%clk 0:00:21.1]} 33.
Kf3 {[%clk 0:01:03.7]} 33... Kd7 {[%clk 0:00:21.1]} 34. Ke4 {[%clk 0:01:04.1]}
34... Kc6 {[%clk 0:00:21]} 35. h4 {[%clk 0:00:58.9]} 35... f5+ {[%clk
0:00:20.7]} 36. Kd3 {[%clk 0:00:58.2]} 36... h5 {[%clk 0:00:21]} 37. Kc4 {[%clk
0:00:54.4]} 37... Be7 {[%clk 0:00:21.2]} 38. Bf2 {[%clk 0:00:53.7]} 38... f6
{[%clk 0:00:21.7]} 39. Be1 {[%clk 0:00:52.1]} 39... Bd6 {[%clk 0:00:20]} 40.
Bxb4 {[%clk 0:00:49]} 40... Bxf4 {[%clk 0:00:19.6]} 41. Be1 {[%clk 0:00:47.7]}
41... Be3 {[%clk 0:00:19]} 42. b4 {[%clk 0:00:47.7]} 42... f4 {[%clk 0:00:19.6]}
43. Kd3 {[%clk 0:00:45.2]} 43... Kd5 {[%clk 0:00:18.8]} 44. c4+ {[%clk
0:00:45.2]} 44... Kc6 {[%clk 0:00:19.2]} 45. Ke4 {[%clk 0:00:44.5]} 45... f5+
{[%clk 0:00:18.7]} 46. Ke5 {[%clk 0:00:36.6]} 46... f3 {[%clk 0:00:18.8]} 47.
Kxe6 {[%clk 0:00:36.6]} 47... f2 {[%clk 0:00:19.3]} 48. Bxf2 {[%clk 0:00:36.8]}
48... Bxf2 {[%clk 0:00:20.1]} 49. Kxf5 {[%clk 0:00:37.5]} 49... Bxh4 {[%clk
0:00:19.5]} 50. Kg6 {[%clk 0:00:37.5]} 50... Be1 {[%clk 0:00:19.3]} 51. b5+
{[%clk 0:00:37.5]} 51... Kc5 {[%clk 0:00:18.7]} 52. Kxh5 {[%clk 0:00:38.2]}
52... Kxc4 {[%clk 0:00:18.7]} 53. b6 {[%clk 0:00:38.9]} 53... Bg3 {[%clk
0:00:18.6]} 54. b7 {[%clk 0:00:39.8]} 54... Bb8 {[%clk 0:00:18.5]} 55. Kg6
{[%clk 0:00:40.1]} 55... Kb5 {[%clk 0:00:19]} 56. Kf7 {[%clk 0:00:40.8]} 56...
Kb6 {[%clk 0:00:19.7]} 57. Ke8 {[%clk 0:00:41.6]} 57... Kxb7 {[%clk 0:00:20.2]}
1/2-1/2

[Event "Late-Titled-Tuesday-Blitz-October-03-2023"]
[Site "Chess.com"]
[Date "2023.10.03"]
[Round "6"]
[White "stasOR4ik"]
[Black "Mikhail_Golubev"]
[Result "0-1"]
[WhiteElo "2424"]
[BlackElo "2611"]
[TimeControl "180+1"]
[EndTime "15:04:08 PDT"]
[Termination "Mikhail_Golubev won by checkmate"]

1. e4 {[%clk 0:03:00.9]} 1... c5 {[%clk 0:03:00]} 2. c3 {[%clk 0:03:00.7]} 2...
Nf6 {[%clk 0:02:57.8]} 3. e5 {[%clk 0:03:00.9]} 3... Nd5 {[%clk 0:02:56.6]} 4.
d4 {[%clk 0:03:01.3]} 4... cxd4 {[%clk 0:02:54.9]} 5. Nf3 {[%clk 0:03:01.6]}
5... Nc6 {[%clk 0:02:54.7]} 6. cxd4 {[%clk 0:02:59.8]} 6... d6 {[%clk
0:02:51.1]} 7. Bc4 {[%clk 0:02:54.2]} 7... Nb6 {[%clk 0:02:45.1]} 8. Bxf7+
{[%clk 0:02:22.1]} 8... Kxf7 {[%clk 0:02:43.5]} 9. Ng5+ {[%clk 0:02:22.8]} 9...
Kg8 {[%clk 0:02:26.1]} 10. Qf3 {[%clk 0:02:11.7]} 10... Qe8 {[%clk 0:02:24.1]}
11. e6 {[%clk 0:02:11.3]} 11... Nd8 {[%clk 0:02:21.7]} 12. d5 {[%clk 0:02:08]}
12... h6 {[%clk 0:02:16.5]} 13. Nh3 {[%clk 0:02:06]} 13... Nxd5 {[%clk
0:02:03.1]} 14. Qxd5 {[%clk 0:02:05]} 14... Bxe6 {[%clk 0:02:03.7]} 15. Qd3
{[%clk 0:02:00.2]} 15... Rc8 {[%clk 0:02:00.7]} 16. O-O {[%clk 0:01:58]} 16...
Bc4 {[%clk 0:01:59.2]} 17. Qc2 {[%clk 0:01:45]} 17... Qd7 {[%clk 0:01:16.4]} 18.
Re1 {[%clk 0:01:39.1]} 18... Be6 {[%clk 0:01:15.8]} 19. Nc3 {[%clk 0:01:16.3]}
19... Bxh3 {[%clk 0:01:14.4]} 20. gxh3 {[%clk 0:01:17.2]} 20... Qxh3 {[%clk
0:01:11]} 21. Re3 {[%clk 0:01:17.9]} 21... Qd7 {[%clk 0:01:03.3]} 22. Bd2 {[%clk
0:01:14.1]} 22... h5 {[%clk 0:00:56.6]} 23. Rae1 {[%clk 0:01:10.4]} 23... h4
{[%clk 0:00:51.9]} 24. Qb3+ {[%clk 0:01:10.2]} 24... e6 {[%clk 0:00:42.8]} 25.
Re4 {[%clk 0:01:04.9]} 25... Rh5 {[%clk 0:00:38.4]} 26. Rg4 {[%clk 0:01:02.4]}
26... d5 {[%clk 0:00:29.6]} 27. Ne2 {[%clk 0:00:46]} 27... Qf7 {[%clk
0:00:20.6]} 28. Nf4 {[%clk 0:00:43.5]} 28... Rf5 {[%clk 0:00:20.4]} 29. Rxh4
{[%clk 0:00:33.4]} 29... Rc4 {[%clk 0:00:19.3]} 30. Qh3 {[%clk 0:00:31.4]} 30...
Qf6 {[%clk 0:00:11.4]} 31. Rh8+ {[%clk 0:00:17.6]} 31... Kf7 {[%clk 0:00:11.9]}
32. Nh5 {[%clk 0:00:13.4]} 32... Qg6+ {[%clk 0:00:10.2]} 33. Ng3 {[%clk
0:00:13.6]} 33... Rf3 {[%clk 0:00:07.1]} 34. Rxf8+ {[%clk 0:00:12.2]} 34... Kxf8
{[%clk 0:00:06.8]} 35. Qh8+ {[%clk 0:00:12.9]} 35... Ke7 {[%clk 0:00:06.9]} 36.
Kg2 {[%clk 0:00:10]} 36... Rf8 {[%clk 0:00:06.5]} 37. Qh3 {[%clk 0:00:09.3]}
37... Rc2 {[%clk 0:00:06.1]} 38. Bc3 {[%clk 0:00:08]} 38... Rfxf2+ {[%clk
0:00:03.7]} 39. Kg1 {[%clk 0:00:08.1]} 39... Rg2+ {[%clk 0:00:04]} 40. Kf1
{[%clk 0:00:07.7]} 40... Rcf2# {[%clk 0:00:03.7]} 0-1

[Event "Late-Titled-Tuesday-Blitz-October-03-2023"]
[Site "Chess.com"]
[Date "2023.10.03"]
[Round "6"]
[White "GMBenjaminBok"]
[Black "Abund"]
[Result "1-0"]
[WhiteElo "2989"]
[BlackElo "2781"]
[TimeControl "180+1"]
[EndTime "15:04:10 PDT"]
[Termination "GMBenjaminBok won by resignation"]

1. d4 {[%clk 0:03:00.3]} 1... d5 {[%clk 0:02:59.6]} 2. c4 {[%clk 0:03:00.6]}
2... e6 {[%clk 0:03:00]} 3. Nc3 {[%clk 0:03:01]} 3... Nf6 {[%clk 0:02:59.5]} 4.
cxd5 {[%clk 0:03:00.8]} 4... exd5 {[%clk 0:02:58.7]} 5. Bg5 {[%clk 0:03:00.2]}
5... c6 {[%clk 0:02:58.6]} 6. e3 {[%clk 0:03:00.3]} 6... h6 {[%clk 0:02:56.5]}
7. Bh4 {[%clk 0:02:59.8]} 7... Be7 {[%clk 0:02:51.3]} 8. Bd3 {[%clk 0:02:59.4]}
8... O-O {[%clk 0:02:49.7]} 9. Nge2 {[%clk 0:02:59.2]} 9... Re8 {[%clk
0:02:48.3]} 10. O-O {[%clk 0:02:58.3]} 10... Nbd7 {[%clk 0:02:48.6]} 11. a4
{[%clk 0:02:57.8]} 11... a5 {[%clk 0:02:46.2]} 12. f3 {[%clk 0:02:57.6]} 12...
c5 {[%clk 0:02:35.7]} 13. Bb5 {[%clk 0:02:52.4]} 13... b6 {[%clk 0:02:23.2]} 14.
Bxf6 {[%clk 0:02:40.9]} 14... Bxf6 {[%clk 0:02:18.4]} 15. Nxd5 {[%clk
0:02:40.9]} 15... Re6 {[%clk 0:01:35.4]} 16. e4 {[%clk 0:01:53.3]} 16... cxd4
{[%clk 0:01:01.5]} 17. Nxd4 {[%clk 0:01:51.3]} 17... Bxd4+ {[%clk 0:01:01]} 18.
Qxd4 {[%clk 0:01:52.2]} 18... Nc5 {[%clk 0:01:00.9]} 19. Rad1 {[%clk 0:01:47.7]}
19... Bb7 {[%clk 0:01:00.9]} 20. Nf4 {[%clk 0:01:39.7]} 20... Qxd4+ {[%clk
0:00:55]} 21. Rxd4 {[%clk 0:01:40.6]} 21... Rf6 {[%clk 0:00:47.9]} 22. e5 {[%clk
0:01:31.6]} 22... Rf5 {[%clk 0:00:28.9]} 23. Re1 {[%clk 0:01:30.6]} 23... Nb3
{[%clk 0:00:27.7]} 24. Rc4 {[%clk 0:01:00.5]} 24... Nd2 {[%clk 0:00:27.7]} 25.
Rc7 {[%clk 0:00:37.7]} 25... Bxf3 {[%clk 0:00:27.4]} 26. e6 {[%clk 0:00:31.5]}
26... Rxf4 {[%clk 0:00:18.7]} 27. e7 {[%clk 0:00:31.2]} 27... Rg4 {[%clk
0:00:18]} 28. e8=Q+ {[%clk 0:00:17.1]} 28... Rxe8 {[%clk 0:00:17.9]} 29. Rxe8+
{[%clk 0:00:18]} 29... Kh7 {[%clk 0:00:18.6]} 30. Bd3+ {[%clk 0:00:18.9]} 30...
Ne4 {[%clk 0:00:11.3]} 31. Rxf7 {[%clk 0:00:11.1]} 31... Bxg2 {[%clk 0:00:04.5]}
32. h3 {[%clk 0:00:11.3]} 32... Rg5 {[%clk 0:00:02.5]} 33. Kh2 {[%clk 0:00:09]}
33... Kg6 {[%clk 0:00:02.5]} 34. Rf4 {[%clk 0:00:08.4]} 34... Kh5 {[%clk
0:00:01.2]} 35. Bxe4 {[%clk 0:00:08.3]} 35... Bxe4 {[%clk 0:00:01.4]} 36. Rexe4
{[%clk 0:00:08.7]} 36... Rc5 {[%clk 0:00:02.1]} 37. Rh4+ {[%clk 0:00:08.4]}
37... Kg6 {[%clk 0:00:02.1]} 38. Rhg4+ {[%clk 0:00:09.3]} 38... Kh7 {[%clk
0:00:02.7]} 39. Re7 {[%clk 0:00:09.3]} 39... Rg5 {[%clk 0:00:03]} 40. Rxg5
{[%clk 0:00:09.7]} 40... hxg5 {[%clk 0:00:03.3]} 41. Rb7 {[%clk 0:00:10.6]}
41... b5 {[%clk 0:00:03.9]} 42. Rxb5 {[%clk 0:00:10.7]} 1-0

[Event "Late-Titled-Tuesday-Blitz-October-03-2023"]
[Site "Chess.com"]
[Date "2023.10.03"]
[Round "6"]
[White "KafkaesqueKnight"]
[Black "josiur"]
[Result "1-0"]
[WhiteElo "2357"]
[BlackElo "2504"]
[TimeControl "180+1"]
[EndTime "15:04:16 PDT"]
[Termination "KafkaesqueKnight won by checkmate"]

1. d4 {[%clk 0:03:00.9]} 1... d5 {[%clk 0:02:59.7]} 2. c4 {[%clk 0:03:01.3]}
2... e6 {[%clk 0:03:00.2]} 3. Nc3 {[%clk 0:03:01.7]} 3... a6 {[%clk 0:03:00.6]}
4. c5 {[%clk 0:02:58.1]} 4... b6 {[%clk 0:02:59.6]} 5. cxb6 {[%clk 0:02:57.7]}
5... c5 {[%clk 0:02:59.7]} 6. dxc5 {[%clk 0:02:56.4]} 6... Bxc5 {[%clk 0:02:59]}
7. Na4 {[%clk 0:02:56.2]} 7... Bxb6 {[%clk 0:02:54.1]} 8. Nxb6 {[%clk 0:02:52]}
8... Qxb6 {[%clk 0:02:55]} 9. Be3 {[%clk 0:02:48.8]} 9... Qxb2 {[%clk
0:02:48.9]} 10. Rc1 {[%clk 0:02:41.2]} 10... Qb4+ {[%clk 0:02:42.5]} 11. Bd2
{[%clk 0:02:36.9]} 11... Qb7 {[%clk 0:02:42.2]} 12. Qa4+ {[%clk 0:02:23.8]}
12... Bd7 {[%clk 0:02:39.8]} 13. Qg4 {[%clk 0:02:24.4]} 13... g6 {[%clk
0:02:24.4]} 14. Qd4 {[%clk 0:02:10]} 14... f6 {[%clk 0:02:21.5]} 15. e4 {[%clk
0:01:57.2]} 15... dxe4 {[%clk 0:02:12.1]} 16. Qd6 {[%clk 0:01:41.6]} 16... Nc6
{[%clk 0:02:08]} 17. Bc4 {[%clk 0:01:39.2]} 17... Nge7 {[%clk 0:01:26.2]} 18.
Bxe6 {[%clk 0:01:28.2]} 18... Bxe6 {[%clk 0:01:25.1]} 19. Qxe6 {[%clk
0:01:29.1]} 19... f5 {[%clk 0:01:19.1]} 20. Nh3 {[%clk 0:01:13.3]} 20... Qd7
{[%clk 0:01:16.5]} 21. Qf6 {[%clk 0:00:59.6]} 21... Rf8 {[%clk 0:01:12.6]} 22.
Qg7 {[%clk 0:00:41.7]} 22... Nd5 {[%clk 0:00:56.7]} 23. Qh6 {[%clk 0:00:27.5]}
23... Nd4 {[%clk 0:00:46.8]} 24. O-O {[%clk 0:00:07.9]} 24... Ne2+ {[%clk
0:00:46]} 25. Kh1 {[%clk 0:00:08.8]} 25... Nxc1 {[%clk 0:00:45.5]} 26. Rxc1
{[%clk 0:00:09.7]} 26... Rc8 {[%clk 0:00:43]} 27. Rb1 {[%clk 0:00:06.4]} 27...
Nf6 {[%clk 0:00:37.7]} 28. Bb4 {[%clk 0:00:03.9]} 28... Rf7 {[%clk 0:00:33.1]}
29. Ng5 {[%clk 0:00:04.1]} 29... Ng4 {[%clk 0:00:24.4]} 30. Qh4 {[%clk
0:00:04.6]} 30... Qd3 {[%clk 0:00:16.8]} 31. Rg1 {[%clk 0:00:01.3]} 31... Rb7
{[%clk 0:00:15.9]} 32. Be1 {[%clk 0:00:01.1]} 32... Rc1 {[%clk 0:00:13.1]} 33.
h3 {[%clk 0:00:01.7]} 33... Nf6 {[%clk 0:00:05.9]} 34. Ne6 {[%clk 0:00:01.9]}
34... Kf7 {[%clk 0:00:05.7]} 35. Ng5+ {[%clk 0:00:02]} 35... Kg7 {[%clk
0:00:05.2]} 36. Ne6+ {[%clk 0:00:02.3]} 36... Kg8 {[%clk 0:00:05.7]} 37. Ng5
{[%clk 0:00:02.5]} 37... Qe2 {[%clk 0:00:04.8]} 38. Ne6 {[%clk 0:00:02.6]} 38...
Rxe1 {[%clk 0:00:05.1]} 39. Qxf6 {[%clk 0:00:03.5]} 39... Rxg1+ {[%clk
0:00:05.3]} 40. Kh2 {[%clk 0:00:04.3]} 40... Rf7 {[%clk 0:00:03.8]} 41. Qd8+
{[%clk 0:00:04.5]} 41... Rf8 {[%clk 0:00:04.4]} 42. Qxf8# {[%clk 0:00:05.1]} 1-0

[Event "Late-Titled-Tuesday-Blitz-October-03-2023"]
[Site "Chess.com"]
[Date "2023.10.03"]
[Round "6"]
[White "andjela_djidjika"]
[Black "copanchess"]
[Result "0-1"]
[WhiteElo "1972"]
[BlackElo "2169"]
[TimeControl "180+1"]
[EndTime "15:04:17 PDT"]
[Termination "copanchess won on time"]

1. e4 {[%clk 0:03:00.9]} 1... e5 {[%clk 0:02:58.1]} 2. Bc4 {[%clk 0:02:59.7]}
2... Nf6 {[%clk 0:02:55.4]} 3. d3 {[%clk 0:03:00.3]} 3... c6 {[%clk 0:02:54.6]}
4. Nf3 {[%clk 0:03:00.9]} 4... d5 {[%clk 0:02:29.5]} 5. Bb3 {[%clk 0:02:59.2]}
5... Bd6 {[%clk 0:02:20.4]} 6. exd5 {[%clk 0:02:53.8]} 6... cxd5 {[%clk
0:02:19.6]} 7. Bg5 {[%clk 0:02:54]} 7... O-O {[%clk 0:01:51.9]} 8. O-O {[%clk
0:02:49.8]} 8... e4 {[%clk 0:01:38.6]} 9. Nd4 {[%clk 0:02:28.3]} 9... Nc6 {[%clk
0:01:33.5]} 10. Nxc6 {[%clk 0:02:02.5]} 10... bxc6 {[%clk 0:01:34.4]} 11. h3
{[%clk 0:01:58.8]} 11... exd3 {[%clk 0:01:31]} 12. Qxd3 {[%clk 0:01:56.1]} 12...
a5 {[%clk 0:01:31.4]} 13. Re1 {[%clk 0:01:54.1]} 13... h6 {[%clk 0:01:28]} 14.
Bxf6 {[%clk 0:01:43.9]} 14... Qxf6 {[%clk 0:01:26.8]} 15. Nc3 {[%clk 0:01:44]}
15... Bb4 {[%clk 0:01:01.8]} 16. a4 {[%clk 0:01:40.2]} 16... Bf5 {[%clk
0:00:56.7]} 17. Qf3 {[%clk 0:01:33.8]} 17... Rfe8 {[%clk 0:00:49.7]} 18. Rxe8+
{[%clk 0:01:05.4]} 18... Rxe8 {[%clk 0:00:47.5]} 19. Rd1 {[%clk 0:01:04.3]}
19... Bxc3 {[%clk 0:00:32.9]} 20. bxc3 {[%clk 0:01:01.5]} 20... Qg6 {[%clk
0:00:24.5]} 21. Rd2 {[%clk 0:00:53.3]} 21... Re1+ {[%clk 0:00:20.2]} 22. Kh2
{[%clk 0:00:53.5]} 22... Be4 {[%clk 0:00:20.1]} 23. Qg3 {[%clk 0:00:51.2]} 23...
Qxg3+ {[%clk 0:00:17.7]} 24. fxg3 {[%clk 0:00:48.7]} 24... f5 {[%clk 0:00:16.4]}
25. c4 {[%clk 0:00:45.3]} 25... dxc4 {[%clk 0:00:11.2]} 26. Bxc4+ {[%clk
0:00:46.2]} 26... Kf8 {[%clk 0:00:09.9]} 27. Bb3 {[%clk 0:00:42.9]} 27... Ke7
{[%clk 0:00:09.9]} 28. Rf2 {[%clk 0:00:27.4]} 28... g6 {[%clk 0:00:08.5]} 29. g4
{[%clk 0:00:26.9]} 29... Kd6 {[%clk 0:00:07.9]} 30. gxf5 {[%clk 0:00:24.7]}
30... gxf5 {[%clk 0:00:08.8]} 31. Kg3 {[%clk 0:00:24.3]} 31... Ke5 {[%clk
0:00:08.9]} 32. h4 {[%clk 0:00:19.7]} 32... Re3+ {[%clk 0:00:08.6]} 33. Kh2
{[%clk 0:00:18.5]} 33... Rc3 {[%clk 0:00:07.8]} 34. g3 {[%clk 0:00:16.6]} 34...
Re3 {[%clk 0:00:06.9]} 35. Bc4 {[%clk 0:00:09.2]} 35... Re1 {[%clk 0:00:06.7]}
36. Bf1 {[%clk 0:00:06.2]} 36... c5 {[%clk 0:00:06.3]} 37. c3 {[%clk 0:00:05.7]}
37... c4 {[%clk 0:00:05.9]} 38. Bh3 {[%clk 0:00:02.7]} 38... Rc1 {[%clk
0:00:04.7]} 39. Bf1 {[%clk 0:00:02.3]} 39... Rxc3 {[%clk 0:00:04.1]} 0-1